[Event "Early-Titled-Tuesday-Blitz-October-17-2023"]
[Site "Chess.com"]
[Date "2023.10.17"]
[Round "2"]
[White "Sokoloco"]
[Black "atalz0"]
[Result "1-0"]
[WhiteElo "2694"]
[BlackElo "2513"]
[TimeControl "180+1"]
[EndTime "8:19:36 PDT"]
[Termination "Sokoloco won on time"]

1. b3 {[%clk 0:03:00.9]} 1... e5 {[%clk 0:02:59.3]} 2. Bb2 {[%clk 0:02:49.9]}
2... Nc6 {[%clk 0:02:59.7]} 3. e3 {[%clk 0:02:45.9]} 3... Nf6 {[%clk 0:03:00.1]}
4. Nf3 {[%clk 0:02:45]} 4... e4 {[%clk 0:02:58.9]} 5. Nd4 {[%clk 0:02:45.2]}
5... Nxd4 {[%clk 0:02:59.2]} 6. Bxd4 {[%clk 0:02:46.1]} 6... d5 {[%clk
0:02:44.3]} 7. c4 {[%clk 0:02:43.3]} 7... Be6 {[%clk 0:02:37.6]} 8. Nc3 {[%clk
0:02:39.3]} 8... c6 {[%clk 0:02:27.7]} 9. Bxf6 {[%clk 0:02:08.7]} 9... gxf6
{[%clk 0:02:27]} 10. cxd5 {[%clk 0:02:08.3]} 10... Bxd5 {[%clk 0:02:26.8]} 11.
Nxd5 {[%clk 0:02:02]} 11... Qxd5 {[%clk 0:02:27.7]} 12. Bc4 {[%clk 0:01:44.7]}
12... Qe5 {[%clk 0:02:25.6]} 13. O-O {[%clk 0:01:31.6]} 13... Bd6 {[%clk
0:02:24.6]} 14. g3 {[%clk 0:01:31.4]} 14... h5 {[%clk 0:02:24.4]} 15. f4 {[%clk
0:01:27.1]} 15... Qf5 {[%clk 0:01:44.6]} 16. Kh1 {[%clk 0:00:51.7]} 16... O-O-O
{[%clk 0:01:40.9]} 17. Bxf7 {[%clk 0:00:39.8]} 17... Rd7 {[%clk 0:01:41.1]} 18.
Bc4 {[%clk 0:00:37.4]} 18... Rg7 {[%clk 0:01:41.3]} 19. Be2 {[%clk 0:00:28.4]}
19... Qh3 {[%clk 0:01:37.2]} 20. Rg1 {[%clk 0:00:25]} 20... Rhg8 {[%clk
0:01:12.6]} 21. Qe1 {[%clk 0:00:24.9]} 21... f5 {[%clk 0:01:05.2]} 22. Qf2
{[%clk 0:00:13.5]} 22... h4 {[%clk 0:00:57]} 23. gxh4 {[%clk 0:00:13.2]} 23...
Be7 {[%clk 0:00:50.2]} 24. Rxg7 {[%clk 0:00:09.5]} 24... Rxg7 {[%clk 0:00:49.2]}
25. Rg1 {[%clk 0:00:08.7]} 25... Bxh4 {[%clk 0:00:48.9]} 26. Qf1 {[%clk
0:00:05.3]} 26... Qxf1 {[%clk 0:00:33.6]} 27. Bxf1 {[%clk 0:00:03.1]} 27... Rd7
{[%clk 0:00:32.1]} 28. Bh3 {[%clk 0:00:03.7]} 28... Rxd2 {[%clk 0:00:28.2]} 29.
Bxf5+ {[%clk 0:00:03.6]} 29... Kc7 {[%clk 0:00:28.7]} 30. Bxe4 {[%clk
0:00:03.6]} 30... Rxa2 {[%clk 0:00:22.4]} 31. Rf1 {[%clk 0:00:02.8]} 31... Rf2
{[%clk 0:00:16.2]} 32. Kg1 {[%clk 0:00:01.6]} 32... Re2 {[%clk 0:00:16.1]} 33.
f5 {[%clk 0:00:01.6]} 33... Bf6 {[%clk 0:00:14.7]} 34. Rf3 {[%clk 0:00:01.8]}
34... Kd6 {[%clk 0:00:14.2]} 35. h4 {[%clk 0:00:01.9]} 35... Ke5 {[%clk
0:00:13.9]} 36. Bd3 {[%clk 0:00:02.6]} 36... Rd2 {[%clk 0:00:12.6]} 37. e4
{[%clk 0:00:02.6]} 37... Bxh4 {[%clk 0:00:12.2]} 38. Kf1 {[%clk 0:00:02.6]}
38... Bf6 {[%clk 0:00:10.2]} 39. Kg1 {[%clk 0:00:03.1]} 39... Rb2 {[%clk
0:00:10.3]} 40. Bc4 {[%clk 0:00:03.1]} 40... b5 {[%clk 0:00:10]} 41. Be6 {[%clk
0:00:03]} 41... Re2 {[%clk 0:00:09.8]} 42. Rc3 {[%clk 0:00:03.3]} 42... Kf4
{[%clk 0:00:07.5]} 43. Rxc6 {[%clk 0:00:03.3]} 43... Bd4+ {[%clk 0:00:05.2]} 44.
Kf1 {[%clk 0:00:03.5]} 44... Rxe4 {[%clk 0:00:03.2]} 45. Ra6 {[%clk 0:00:02.9]}
1-0

[Event "Early-Titled-Tuesday-Blitz-October-17-2023"]
[Site "Chess.com"]
[Date "2023.10.17"]
[Round "2"]
[White "Kostukov_Alex"]
[Black "djokovic74"]
[Result "0-1"]
[WhiteElo "2386"]
[BlackElo "2732"]
[TimeControl "180+1"]
[EndTime "8:19:36 PDT"]
[Termination "djokovic74 won on time"]

1. g3 {[%clk 0:02:57.2]} 1... d5 {[%clk 0:03:00]} 2. Bg2 {[%clk 0:02:56.9]} 2...
Nf6 {[%clk 0:03:00.7]} 3. d3 {[%clk 0:02:57]} 3... e6 {[%clk 0:02:59.8]} 4. e4
{[%clk 0:02:55.7]} 4... dxe4 {[%clk 0:02:59.8]} 5. dxe4 {[%clk 0:02:55.8]} 5...
Qxd1+ {[%clk 0:03:00.4]} 6. Kxd1 {[%clk 0:02:53.9]} 6... Bc5 {[%clk 0:03:01.3]}
7. f3 {[%clk 0:02:51.4]} 7... O-O {[%clk 0:02:59.8]} 8. Nd2 {[%clk 0:02:48.2]}
8... Nc6 {[%clk 0:02:59]} 9. c3 {[%clk 0:02:47.9]} 9... e5 {[%clk 0:02:59.4]}
10. a4 {[%clk 0:02:44.9]} 10... a5 {[%clk 0:02:59.5]} 11. Kc2 {[%clk 0:02:39.5]}
11... Be6 {[%clk 0:02:58.3]} 12. Bh3 {[%clk 0:02:38.9]} 12... Bxh3 {[%clk
0:02:42.6]} 13. Nxh3 {[%clk 0:02:39.8]} 13... Rad8 {[%clk 0:02:42.4]} 14. Nc4
{[%clk 0:02:39.3]} 14... Rfe8 {[%clk 0:02:39.9]} 15. Be3 {[%clk 0:02:16.9]}
15... Bxe3 {[%clk 0:02:39]} 16. Nxe3 {[%clk 0:02:16.9]} 16... Rd7 {[%clk
0:02:36.5]} 17. Rhd1 {[%clk 0:02:11.3]} 17... Red8 {[%clk 0:02:36.8]} 18. Rxd7
{[%clk 0:02:11.2]} 18... Rxd7 {[%clk 0:02:37]} 19. Nf2 {[%clk 0:02:11.9]} 19...
g6 {[%clk 0:02:35.8]} 20. Nc4 {[%clk 0:02:04.4]} 20... b6 {[%clk 0:02:33]} 21.
Nd3 {[%clk 0:01:58.6]} 21... Re7 {[%clk 0:02:30]} 22. b4 {[%clk 0:01:46.1]}
22... axb4 {[%clk 0:02:28.8]} 23. Nxb4 {[%clk 0:01:46.2]} 23... Nb8 {[%clk
0:02:04.1]} 24. a5 {[%clk 0:01:34.8]} 24... c5 {[%clk 0:01:56.4]} 25. Nd5 {[%clk
0:01:11.6]} 25... Nxd5 {[%clk 0:01:54.3]} 26. exd5 {[%clk 0:01:11.9]} 26... b5
{[%clk 0:01:49.4]} 27. d6 {[%clk 0:00:55.9]} 27... Rd7 {[%clk 0:01:47.3]} 28. a6
{[%clk 0:00:46.2]} 28... Nxa6 {[%clk 0:01:36.1]} 29. Rxa6 {[%clk 0:00:41.8]}
29... bxc4 {[%clk 0:01:35]} 30. Rc6 {[%clk 0:00:41]} 30... f6 {[%clk 0:01:29.5]}
31. Rxc5 {[%clk 0:00:37.6]} 31... Rxd6 {[%clk 0:01:30]} 32. Rxc4 {[%clk
0:00:38.2]} 32... Ra6 {[%clk 0:01:28.5]} 33. Kd3 {[%clk 0:00:25.8]} 33... Ra7
{[%clk 0:01:20.9]} 34. Rc6 {[%clk 0:00:22]} 34... Kf7 {[%clk 0:01:21.3]} 35. Ke4
{[%clk 0:00:20.2]} 35... Ra2 {[%clk 0:01:17.9]} 36. Rc7+ {[%clk 0:00:17.2]}
36... Ke6 {[%clk 0:01:17.9]} 37. Rxh7 {[%clk 0:00:16.3]} 37... Rc2 {[%clk
0:01:10.6]} 38. Kd3 {[%clk 0:00:16.2]} 38... Rf2 {[%clk 0:01:10.8]} 39. Ke3
{[%clk 0:00:16]} 39... Rc2 {[%clk 0:01:11]} 40. Kd3 {[%clk 0:00:15.2]} 40... Ra2
{[%clk 0:01:04.1]} 41. h4 {[%clk 0:00:12.7]} 41... Rf2 {[%clk 0:01:02.7]} 42.
Ke3 {[%clk 0:00:12.2]} 42... Rc2 {[%clk 0:01:03.3]} 43. Kd3 {[%clk 0:00:12.1]}
43... Rg2 {[%clk 0:00:57.3]} 44. g4 {[%clk 0:00:11.5]} 44... f5 {[%clk
0:00:57.9]} 45. Rh6 {[%clk 0:00:08.2]} 45... Kf6 {[%clk 0:00:48.4]} 46. h5
{[%clk 0:00:07.2]} 46... Kg5 {[%clk 0:00:35.9]} 47. Rxg6+ {[%clk 0:00:07.3]}
47... Kf4 {[%clk 0:00:36.7]} 48. h6 {[%clk 0:00:05.9]} 48... e4+ {[%clk
0:00:27.4]} 49. fxe4 {[%clk 0:00:05.1]} 49... fxe4+ {[%clk 0:00:28.3]} 50. Kc4
{[%clk 0:00:02.7]} 50... Rd2 {[%clk 0:00:29]} 0-1

[Event "Early-Titled-Tuesday-Blitz-October-17-2023"]
[Site "Chess.com"]
[Date "2023.10.17"]
[Round "2"]
[White "Polish_fighter3000"]
[Black "Kostya0705"]
[Result "0-1"]
[WhiteElo "3036"]
[BlackElo "2637"]
[TimeControl "180+1"]
[EndTime "8:19:37 PDT"]
[Termination "Kostya0705 won by checkmate"]

1. d4 {[%clk 0:03:00.9]} 1... Nf6 {[%clk 0:02:59.8]} 2. c4 {[%clk 0:03:01.6]}
2... e6 {[%clk 0:03:00.3]} 3. Nc3 {[%clk 0:03:02.2]} 3... Bb4 {[%clk 0:03:01]}
4. f3 {[%clk 0:03:02.7]} 4... c5 {[%clk 0:02:59.9]} 5. a3 {[%clk 0:03:01.3]}
5... Bxc3+ {[%clk 0:02:59.4]} 6. bxc3 {[%clk 0:03:02.2]} 6... O-O {[%clk
0:02:59.2]} 7. e4 {[%clk 0:03:01.5]} 7... Ne8 {[%clk 0:02:59.4]} 8. Bd3 {[%clk
0:02:59.8]} 8... b6 {[%clk 0:02:59.6]} 9. Ne2 {[%clk 0:02:58.5]} 9... Nc6 {[%clk
0:03:00.2]} 10. h4 {[%clk 0:02:57.2]} 10... Ba6 {[%clk 0:02:59.6]} 11. h5 {[%clk
0:02:57.3]} 11... h6 {[%clk 0:02:59.2]} 12. g4 {[%clk 0:02:55.5]} 12... Nd6
{[%clk 0:02:52.4]} 13. e5 {[%clk 0:02:46.5]} 13... Nxc4 {[%clk 0:02:50.8]} 14.
Bb1 {[%clk 0:02:47.1]} 14... f5 {[%clk 0:02:46.4]} 15. gxf5 {[%clk 0:02:22.9]}
15... exf5 {[%clk 0:02:45.2]} 16. Kf2 {[%clk 0:02:23.4]} 16... cxd4 {[%clk
0:02:40.9]} 17. cxd4 {[%clk 0:02:24.3]} 17... d6 {[%clk 0:02:40.5]} 18. e6
{[%clk 0:02:23]} 18... Qf6 {[%clk 0:02:34.6]} 19. Ra2 {[%clk 0:02:16.2]} 19...
d5 {[%clk 0:02:29.1]} 20. Nf4 {[%clk 0:02:15.7]} 20... Rad8 {[%clk 0:02:23.4]}
21. Re2 {[%clk 0:02:11.9]} 21... Rfe8 {[%clk 0:02:17.9]} 22. Be3 {[%clk
0:01:20.1]} 22... Nxe3 {[%clk 0:01:36.4]} 23. Rxe3 {[%clk 0:01:21]} 23... Nxd4
{[%clk 0:01:36.4]} 24. e7 {[%clk 0:00:58]} 24... Rd7 {[%clk 0:01:32.9]} 25. Nxd5
{[%clk 0:00:58]} 25... Qg5 {[%clk 0:00:56.8]} 26. Qxd4 {[%clk 0:00:37.3]} 26...
f4 {[%clk 0:00:55.5]} 27. Qxf4 {[%clk 0:00:34.3]} 27... Rxd5 {[%clk 0:00:54.8]}
28. Ba2 {[%clk 0:00:29.4]} 28... Qxf4 {[%clk 0:00:53.2]} 29. Bxd5+ {[%clk
0:00:29]} 29... Kh8 {[%clk 0:00:51.9]} 30. Bc6 {[%clk 0:00:28.6]} 30... Rxe7
{[%clk 0:00:29.5]} 31. Rxe7 {[%clk 0:00:29.5]} 31... Qd4+ {[%clk 0:00:28.1]} 32.
Kg2 {[%clk 0:00:26.8]} 32... Qd2+ {[%clk 0:00:26.7]} 33. Kh3 {[%clk 0:00:15.5]}
33... Bc8+ {[%clk 0:00:25.5]} 34. Kg3 {[%clk 0:00:08.9]} 34... Qg5+ {[%clk
0:00:25.2]} 35. Kf2 {[%clk 0:00:09.6]} 35... Qxe7 {[%clk 0:00:26]} 36. Be4
{[%clk 0:00:10.2]} 36... Bb7 {[%clk 0:00:25.2]} 37. Bg6 {[%clk 0:00:10.4]} 37...
Qc5+ {[%clk 0:00:24.7]} 38. Kg3 {[%clk 0:00:10.3]} 38... Qg5+ {[%clk 0:00:24.2]}
39. Kf2 {[%clk 0:00:10.8]} 39... Qf4 {[%clk 0:00:23.7]} 40. Rh3 {[%clk
0:00:10.5]} 40... Kg8 {[%clk 0:00:20.4]} 41. Rg3 {[%clk 0:00:10.4]} 41... Kf8
{[%clk 0:00:20.7]} 42. Kg2 {[%clk 0:00:10.6]} 42... Qd2+ {[%clk 0:00:20.1]} 43.
Kg1 {[%clk 0:00:09.4]} 43... Ke7 {[%clk 0:00:19.5]} 44. Bh7 {[%clk 0:00:06.4]}
44... Kf6 {[%clk 0:00:18.9]} 45. Bg8 {[%clk 0:00:06.1]} 45... Bd5 {[%clk
0:00:15.6]} 46. Rg6+ {[%clk 0:00:05.1]} 46... Kf5 {[%clk 0:00:16.1]} 47. Bh7
{[%clk 0:00:05.3]} 47... Kf4 {[%clk 0:00:15.5]} 48. Rxg7 {[%clk 0:00:04.3]}
48... Bxf3 {[%clk 0:00:14.2]} 49. Rf7+ {[%clk 0:00:02.9]} 49... Kg3 {[%clk
0:00:14.8]} 50. Rg7+ {[%clk 0:00:03]} 50... Bg4 {[%clk 0:00:15.4]} 51. Rf7
{[%clk 0:00:03.3]} 51... Qg2# {[%clk 0:00:14.7]} 0-1

[Event "Early-Titled-Tuesday-Blitz-October-17-2023"]
[Site "Chess.com"]
[Date "2023.10.17"]
[Round "2"]
[White "erugee"]
[Black "LangesNasenhaar"]
[Result "0-1"]
[WhiteElo "2246"]
[BlackElo "2494"]
[TimeControl "180+1"]
[EndTime "8:19:42 PDT"]
[Termination "LangesNasenhaar won on time"]

1. e4 {[%clk 0:03:00.9]} 1... Nc6 {[%clk 0:02:59.4]} 2. Nf3 {[%clk 0:02:57.3]}
2... d6 {[%clk 0:03:00.1]} 3. d4 {[%clk 0:02:56]} 3... Nf6 {[%clk 0:03:00.7]} 4.
d5 {[%clk 0:02:54.2]} 4... Nb8 {[%clk 0:02:59.7]} 5. Bd3 {[%clk 0:02:53.9]} 5...
g6 {[%clk 0:03:00]} 6. h3 {[%clk 0:02:51.5]} 6... Bg7 {[%clk 0:03:00.3]} 7. O-O
{[%clk 0:02:50.7]} 7... O-O {[%clk 0:03:00.9]} 8. Re1 {[%clk 0:02:50]} 8... c6
{[%clk 0:03:00.8]} 9. c4 {[%clk 0:02:47.6]} 9... e6 {[%clk 0:02:59.1]} 10. Bg5
{[%clk 0:02:33.6]} 10... exd5 {[%clk 0:02:52.7]} 11. cxd5 {[%clk 0:02:29.8]}
11... cxd5 {[%clk 0:02:46.9]} 12. exd5 {[%clk 0:02:28.4]} 12... Qa5 {[%clk
0:02:37.9]} 13. Nc3 {[%clk 0:02:18.3]} 13... Nxd5 {[%clk 0:02:25.3]} 14. Nxd5
{[%clk 0:02:01.2]} 14... Qxd5 {[%clk 0:02:25]} 15. Qc2 {[%clk 0:01:36.7]} 15...
Nc6 {[%clk 0:02:14.7]} 16. a3 {[%clk 0:01:34]} 16... Nd4 {[%clk 0:02:04.8]} 17.
Nxd4 {[%clk 0:01:29.9]} 17... Qxg5 {[%clk 0:02:03.9]} 18. Nf3 {[%clk 0:01:27.9]}
18... Qf6 {[%clk 0:01:58]} 19. b4 {[%clk 0:01:24.9]} 19... Bxh3 {[%clk
0:01:44.2]} 20. Be4 {[%clk 0:01:18.7]} 20... Be6 {[%clk 0:01:27.8]} 21. Bxb7
{[%clk 0:01:15.8]} 21... Rab8 {[%clk 0:01:27.8]} 22. Be4 {[%clk 0:01:08.4]}
22... d5 {[%clk 0:01:25.3]} 23. Bd3 {[%clk 0:01:07.9]} 23... Rbc8 {[%clk
0:01:18.2]} 24. Qa4 {[%clk 0:01:06.1]} 24... Rc7 {[%clk 0:01:13.8]} 25. Rad1
{[%clk 0:01:04.7]} 25... h5 {[%clk 0:01:03.2]} 26. Bf1 {[%clk 0:01:02.5]} 26...
Qf4 {[%clk 0:00:53.7]} 27. Qa5 {[%clk 0:00:56.8]} 27... Rd7 {[%clk 0:00:38.2]}
28. Qb5 {[%clk 0:00:52.4]} 28... Rfd8 {[%clk 0:00:26.7]} 29. Bd3 {[%clk
0:00:45.4]} 29... d4 {[%clk 0:00:26.6]} 30. Bxg6 {[%clk 0:00:44.8]} 30... Bg4
{[%clk 0:00:24.5]} 31. Bxh5 {[%clk 0:00:42.9]} 31... Rd5 {[%clk 0:00:18.5]} 32.
Re8+ {[%clk 0:00:42.2]} 32... Kh7 {[%clk 0:00:18.8]} 33. Qd3+ {[%clk 0:00:14.8]}
33... Bf5 {[%clk 0:00:18.8]} 34. Qd2 {[%clk 0:00:15.3]} 34... Qxd2 {[%clk
0:00:16.2]} 35. Rxd2 {[%clk 0:00:14.6]} 35... Rxe8 {[%clk 0:00:16.3]} 36. Ng5+
{[%clk 0:00:14.8]} 36... Kh6 {[%clk 0:00:12.6]} 37. Bxf7 {[%clk 0:00:15.3]}
37... Kxg5 {[%clk 0:00:11.1]} 38. Bxe8 {[%clk 0:00:11.4]} 38... d3 {[%clk
0:00:09.5]} 39. g3 {[%clk 0:00:11.3]} 39... Bc3 {[%clk 0:00:08.6]} 40. Rd1
{[%clk 0:00:08.9]} 40... Bg4 {[%clk 0:00:08.8]} 41. f4+ {[%clk 0:00:08]} 41...
Kf6 {[%clk 0:00:08]} 42. Rc1 {[%clk 0:00:07.7]} 42... d2 {[%clk 0:00:08]} 43.
Rf1 {[%clk 0:00:05.1]} 43... d1=Q {[%clk 0:00:07.6]} 44. Rxd1 {[%clk 0:00:05.3]}
44... Rxd1+ {[%clk 0:00:08.2]} 45. Kf2 {[%clk 0:00:05.6]} 45... Rd2+ {[%clk
0:00:08.2]} 46. Kf1 {[%clk 0:00:04.3]} 46... Rd8 {[%clk 0:00:09.1]} 47. Bb5
{[%clk 0:00:03.3]} 47... Rd2 {[%clk 0:00:08.5]} 48. Bc4 {[%clk 0:00:02.7]} 48...
Rb2 {[%clk 0:00:08]} 49. Kg1 {[%clk 0:00:02.1]} 49... Bf3 {[%clk 0:00:07.7]} 50.
Kf1 {[%clk 0:00:01.1]} 50... Bd4 {[%clk 0:00:07.8]} 0-1

[Event "Early-Titled-Tuesday-Blitz-October-17-2023"]
[Site "Chess.com"]
[Date "2023.10.17"]
[Round "2"]
[White "NelsonLinda"]
[Black "TigrVShlyape"]
[Result "1-0"]
[WhiteElo "2597"]
[BlackElo "2840"]
[TimeControl "180+1"]
[EndTime "8:19:43 PDT"]
[Termination "NelsonLinda won on time"]

1. Nf3 {[%clk 0:03:00.9]} 1... Nf6 {[%clk 0:02:59.2]} 2. b3 {[%clk 0:02:57.5]}
2... d5 {[%clk 0:02:58]} 3. Bb2 {[%clk 0:02:57.2]} 3... Bf5 {[%clk 0:02:58.2]}
4. d3 {[%clk 0:02:57.1]} 4... e6 {[%clk 0:02:57.2]} 5. Nbd2 {[%clk 0:02:57.6]}
5... h6 {[%clk 0:02:56]} 6. g3 {[%clk 0:02:57.9]} 6... Nbd7 {[%clk 0:02:53.9]}
7. Bg2 {[%clk 0:02:58.2]} 7... Bh7 {[%clk 0:02:52.8]} 8. O-O {[%clk 0:02:57.6]}
8... Be7 {[%clk 0:01:22.2]} 9. Re1 {[%clk 0:02:56.6]} 9... O-O {[%clk
0:01:21.5]} 10. e4 {[%clk 0:02:56.5]} 10... c6 {[%clk 0:01:22.1]} 11. Qe2 {[%clk
0:02:53.5]} 11... a5 {[%clk 0:01:22.2]} 12. a3 {[%clk 0:02:53.4]} 12... b5
{[%clk 0:01:20.9]} 13. e5 {[%clk 0:02:50.9]} 13... Ne8 {[%clk 0:01:20.6]} 14. h4
{[%clk 0:02:51.4]} 14... Nc7 {[%clk 0:01:19.7]} 15. Nh2 {[%clk 0:02:49.5]} 15...
c5 {[%clk 0:01:14]} 16. c4 {[%clk 0:02:19]} 16... bxc4 {[%clk 0:01:12.5]} 17.
bxc4 {[%clk 0:02:11.7]} 17... Rb8 {[%clk 0:01:06.8]} 18. Bc3 {[%clk 0:02:10.1]}
18... a4 {[%clk 0:01:05.8]} 19. Ba5 {[%clk 0:02:08.6]} 19... Kh8 {[%clk
0:00:52]} 20. Rab1 {[%clk 0:02:01.5]} 20... Ra8 {[%clk 0:00:51.2]} 21. Bxc7
{[%clk 0:01:58.3]} 21... Qxc7 {[%clk 0:00:51.5]} 22. cxd5 {[%clk 0:01:59.2]}
22... exd5 {[%clk 0:00:50.8]} 23. Bxd5 {[%clk 0:02:00.1]} 23... Rad8 {[%clk
0:00:48.4]} 24. Nc4 {[%clk 0:01:56.8]} 24... Nb8 {[%clk 0:00:46.1]} 25. Rb7
{[%clk 0:01:43]} 25... Qc8 {[%clk 0:00:45.4]} 26. Nb6 {[%clk 0:01:42.6]} 26...
Qf5 {[%clk 0:00:38.3]} 27. Rxe7 {[%clk 0:01:25.3]} 27... Qxd3 {[%clk 0:00:31.4]}
28. Qxd3 {[%clk 0:01:22.2]} 28... Bxd3 {[%clk 0:00:31.5]} 29. Rxf7 {[%clk
0:01:21.5]} 29... Rxf7 {[%clk 0:00:31.2]} 30. Bxf7 {[%clk 0:01:22.4]} 30... Nc6
{[%clk 0:00:31.7]} 31. Bd5 {[%clk 0:01:14.2]} 31... Ne7 {[%clk 0:00:31.7]} 32.
Bc4 {[%clk 0:01:12.2]} 32... Bc2 {[%clk 0:00:29.3]} 33. Nf3 {[%clk 0:01:09.2]}
33... Bb3 {[%clk 0:00:26.7]} 34. Rb1 {[%clk 0:00:55.8]} 34... Bc2 {[%clk
0:00:25.4]} 35. Rc1 {[%clk 0:00:53.5]} 35... Be4 {[%clk 0:00:25.4]} 36. Ne1
{[%clk 0:00:39]} 36... Bc6 {[%clk 0:00:24.9]} 37. Bf1 {[%clk 0:00:32]} 37... g5
{[%clk 0:00:24]} 38. hxg5 {[%clk 0:00:27.7]} 38... hxg5 {[%clk 0:00:23.8]} 39.
Bg2 {[%clk 0:00:27.3]} 39... Be8 {[%clk 0:00:16.6]} 40. Nc4 {[%clk 0:00:23.9]}
40... Bg6 {[%clk 0:00:14.1]} 41. Nf3 {[%clk 0:00:22.5]} 41... g4 {[%clk
0:00:13.3]} 42. Nfd2 {[%clk 0:00:20.9]} 42... Kg7 {[%clk 0:00:11.9]} 43. Ne4
{[%clk 0:00:21.1]} 43... Rd4 {[%clk 0:00:11.8]} 44. Ned6 {[%clk 0:00:20.1]}
44... Rd3 {[%clk 0:00:10.3]} 45. Be4 {[%clk 0:00:18.6]} 45... Bxe4 {[%clk
0:00:09.8]} 46. Nxe4 {[%clk 0:00:19.5]} 46... Rd4 {[%clk 0:00:09.7]} 47. Nxc5
{[%clk 0:00:18.9]} 47... Kg6 {[%clk 0:00:10.3]} 48. Nxa4 {[%clk 0:00:18.9]}
48... Kf5 {[%clk 0:00:10.5]} 49. Nab6 {[%clk 0:00:18.6]} 49... Rd3 {[%clk
0:00:09.3]} 50. a4 {[%clk 0:00:18.6]} 50... Ng6 {[%clk 0:00:05]} 51. a5 {[%clk
0:00:18.3]} 1-0

[Event "Early-Titled-Tuesday-Blitz-October-17-2023"]
[Site "Chess.com"]
[Date "2023.10.17"]
[Round "2"]
[White "guillembaches"]
[Black "Aygehovit1992"]
[Result "1/2-1/2"]
[WhiteElo "2524"]
[BlackElo "2687"]
[TimeControl "180+1"]
[EndTime "8:19:43 PDT"]
[Termination "Game drawn by repetition"]

1. d4 {[%clk 0:03:00.9]} 1... Nf6 {[%clk 0:02:58.9]} 2. Nf3 {[%clk 0:03:01.2]}
2... e6 {[%clk 0:02:58.4]} 3. Bg5 {[%clk 0:03:01.8]} 3... h6 {[%clk 0:02:57.2]}
4. Bh4 {[%clk 0:03:01.4]} 4... g5 {[%clk 0:02:55.4]} 5. Bg3 {[%clk 0:03:00.8]}
5... c5 {[%clk 0:02:53.4]} 6. e3 {[%clk 0:02:59.6]} 6... Nc6 {[%clk 0:02:51.6]}
7. Nbd2 {[%clk 0:02:55.4]} 7... d5 {[%clk 0:02:46.3]} 8. c3 {[%clk 0:02:52.9]}
8... Qb6 {[%clk 0:02:42.5]} 9. Rb1 {[%clk 0:02:51.7]} 9... Bd7 {[%clk 0:02:35]}
10. Bd3 {[%clk 0:02:50.5]} 10... Nh5 {[%clk 0:02:27.4]} 11. Qe2 {[%clk
0:02:29.2]} 11... Nxg3 {[%clk 0:02:21.1]} 12. hxg3 {[%clk 0:02:29]} 12... Bg7
{[%clk 0:02:21.8]} 13. dxc5 {[%clk 0:02:11.8]} 13... Qxc5 {[%clk 0:02:22.3]} 14.
e4 {[%clk 0:02:11.9]} 14... O-O-O {[%clk 0:02:15.7]} 15. O-O {[%clk 0:02:07.6]}
15... Bf6 {[%clk 0:01:46.2]} 16. b4 {[%clk 0:02:05.6]} 16... Qd6 {[%clk
0:01:36.1]} 17. b5 {[%clk 0:02:00.1]} 17... Ne5 {[%clk 0:01:36.4]} 18. Nxe5
{[%clk 0:01:54.7]} 18... Bxe5 {[%clk 0:01:31.7]} 19. Nf3 {[%clk 0:01:48.3]}
19... f6 {[%clk 0:01:30.7]} 20. Nxe5 {[%clk 0:01:45]} 20... fxe5 {[%clk
0:01:30.2]} 21. c4 {[%clk 0:01:40.6]} 21... h5 {[%clk 0:01:22.2]} 22. cxd5
{[%clk 0:01:31.1]} 22... h4 {[%clk 0:01:20]} 23. dxe6 {[%clk 0:01:19]} 23...
Bxe6 {[%clk 0:01:19.6]} 24. Bc4 {[%clk 0:01:12.7]} 24... hxg3 {[%clk 0:01:19.3]}
25. Bxe6+ {[%clk 0:01:09.1]} 25... Qxe6 {[%clk 0:01:19.9]} 26. fxg3 {[%clk
0:01:07.1]} 26... Kb8 {[%clk 0:01:12]} 27. Rf5 {[%clk 0:00:58.3]} 27... Qb6+
{[%clk 0:01:10.6]} 28. Qf2 {[%clk 0:00:53.7]} 28... Qh6 {[%clk 0:01:10.9]} 29.
Qc2 {[%clk 0:00:43.8]} 29... g4 {[%clk 0:00:45.5]} 30. Rbf1 {[%clk 0:00:06.8]}
30... Qb6+ {[%clk 0:00:24.1]} 31. Qf2 {[%clk 0:00:05.8]} 31... Qxb5 {[%clk
0:00:24.3]} 32. Qe3 {[%clk 0:00:03.2]} 32... a6 {[%clk 0:00:16.5]} 33. Rf7
{[%clk 0:00:03.2]} 33... Qc6 {[%clk 0:00:08.5]} 34. a4 {[%clk 0:00:03]} 34...
Rd4 {[%clk 0:00:04.6]} 35. Rb1 {[%clk 0:00:02.8]} 35... Rxe4 {[%clk 0:00:02.4]}
36. Rbxb7+ {[%clk 0:00:02.1]} 36... Kc8 {[%clk 0:00:02.9]} 37. Rfc7+ {[%clk
0:00:02.3]} 37... Kd8 {[%clk 0:00:03.1]} 38. Rd7+ {[%clk 0:00:02.4]} 38... Ke8
{[%clk 0:00:02.5]} 39. Re7+ {[%clk 0:00:02.8]} 39... Kd8 {[%clk 0:00:02.5]} 40.
Red7+ {[%clk 0:00:03.1]} 40... Ke8 {[%clk 0:00:03]} 41. Re7+ {[%clk 0:00:03.4]}
41... Kd8 {[%clk 0:00:03.5]} 42. Red7+ {[%clk 0:00:03.8]} 1/2-1/2